fUST/lending_fUST_20250408
["ID","MTS","AMOUNT","RATE_DAILY","PERIOD"]
[357510374,1744096251038,-500.0,0.00023588,2]
[357510375,1744096251047,-518.54,0.00023588,2]
[357510376,1744096251057,-948.06,0.00023588,2]
[357510377,1744096251066,-639.07022694,0.00023588,2]
[357510378,1744096251076,-500.0,0.00023589,2]
[357510379,1744096251086,-500.0,0.00023589,2]
[357510380,1744096251095,-505.58,0.00023589,2]
[357510381,1744096251104,-542.36,0.00023589,2]
[357510382,1744096251113,-871.23,0.00023589,2]
[357510383,1744096251122,-574.78,0.00023589,2]
[357510384,1744096251132,-5430.84,0.00023589,2]
[357510385,1744096251141,-1158.68,0.00023589,2]
[357510386,1744096251151,-566.0,0.00023589,2]
[357510387,1744096251162,-600.12,0.00023589,2]
[357510388,1744096251171,-500.0,0.00023589,2]
[357510389,1744096251181,-209.964046,0.0002359,7]
[357510390,1744096251190,-151.0,0.0002359,7]
[357510391,1744096251201,-1018.84,0.0002359,2]
[357510392,1744096251210,-651.19,0.0002359,2]
[357510393,1744096251220,-864.85,0.0002359,2]
[357510394,1744096251229,-2875.12,0.0002359,2]
[357510395,1744096251239,-1322.83,0.0002359,2]
[357510396,1744096251251,-500.0,0.0002359,2]
[357510397,1744096251260,-2696.02,0.0002359,2]
[357510398,1744096251270,-652.71,0.0002359,2]
[357510399,1744096251280,-1126.37,0.00023689,2]
[357510400,1744096251290,-517.43,0.00023689,2]
[357510401,1744096251300,-500.0,0.0002369,2]
[357510402,1744096251309,-639.32,0.0002369,2]
[357510403,1744096251319,-519.12,0.0002369,2]
[357510404,1744096251329,-500.0,0.0002369,2]
[357510405,1744096251338,-500.0,0.0002369,2]
[357510406,1744096251347,-574.23,0.0002369,2]
[357510407,1744096251357,-631.26,0.0002369,2]
[357510408,1744096251366,-524.67,0.0002369,2]
[357510409,1744096251375,-976.47,0.0002369,2]
[357510410,1744096251384,-151.0,0.0002369,7]
[357510411,1744096251394,-151.0,0.000238,7]
[357510412,1744096251404,-500.0,0.00023862,2]
[357510413,1744096251414,-1733.29,0.00023862,2]
[357510414,1744096251424,-1572.23,0.00023862,2]
[357510415,1744096251433,-760.4,0.00023862,2]
[357510416,1744096251443,-691.08,0.00023862,2]
[357510417,1744096251452,-911.97,0.00023862,2]
[357510418,1744096251462,-500.0,0.00023862,2]
[357510419,1744096251471,-500.0,0.00023862,2]
[357510420,1744096251480,-518.54,0.00023862,2]
[357510421,1744096251490,-948.06,0.00023862,2]
[357510422,1744096251499,-500.0,0.00023863,2]
[357510423,1744096251509,-500.0,0.00023863,2]
[357510424,1744096251520,-505.58,0.00023863,2]
[357510425,1744096251530,-542.36,0.00023863,2]
[357510426,1744096251541,-871.23,0.00023863,2]
[357510427,1744096251550,-574.78,0.00023863,2]
[357510428,1744096251560,-5430.84,0.00023863,2]
[357510429,1744096251571,-1158.68,0.00023863,2]
[357510430,1744096251580,-566.0,0.00023863,2]
[357510431,1744096251589,-600.12,0.00023863,2]
[357510432,1744096251599,-500.0,0.00023863,2]
[357510433,1744096251609,-1018.84,0.00023864,2]
[357510434,1744096251618,-651.19,0.00023864,2]
[357510435,1744096251628,-864.85,0.00023864,2]
[357510436,1744096251638,-2875.12,0.00023864,2]
[357510437,1744096251648,-1322.83,0.00023864,2]
[357510438,1744096251657,-500.0,0.00023864,2]
[357510439,1744096251666,-2696.02,0.00023864,2]
[357510440,1744096251676,-652.71,0.00023864,2]
[357510441,1744096251686,-1126.37,0.00023963,2]
[357510442,1744096251695,-151.0,0.00023963,7]
[357510443,1744096251705,-151.0,0.00023963,7]
[357510444,1744096251716,-151.0,0.00023963,7]
[357510445,1744096251726,-3743.844614,0.00023963,2]
[357510446,1744096251735,-3743.844614,0.00023963,2]
[357510447,1744096251745,-151.0,0.00023963,7]
[357510448,1744096251754,-151.0,0.00023963,7]
[357510449,1744096251764,-517.43,0.00023963,2]
[357510450,1744096251773,-151.0,0.00023963,7]
[357510451,1744096251783,-500.0,0.00023964,2]
[357510452,1744096251793,-639.32,0.00023964,2]
[357510453,1744096251803,-519.12,0.00023964,2]
[357510454,1744096251812,-500.0,0.00023964,2]
[357510455,1744096251822,-500.0,0.00023964,2]
[357510456,1744096251832,-574.23,0.00023964,2]
[357510457,1744096251841,-631.26,0.00023964,2]
[357510458,1744096251850,-524.67,0.00023964,2]
[357510459,1744096251860,-976.47,0.00023964,2]
[357510460,1744096251870,-502.00230505,0.00023978,2]
[357510461,1744096251879,-414.32866615,0.00023988,2]
[357510462,1744096251889,-501.32302356,0.00024048,2]
[357510463,1744096251899,-500.0,0.00024136,2]
[357510464,1744096251910,-1733.29,0.00024136,2]
[357510465,1744096251920,-1572.23,0.00024136,2]
[357510466,1744096251930,-760.4,0.00024136,2]
[357510467,1744096251939,-691.08,0.00024136,2]
[357510468,1744096251948,-911.97,0.00024136,2]
[357510469,1744096251958,-422.74,0.00024136,2]
[357510470,1744096251967,-500.0,0.00024136,2]
[357510471,1744096251977,-518.54,0.00024136,2]
[357510472,1744096251987,-948.06,0.00024136,2]
[357510473,1744096251996,-500.0,0.00024137,2]
[357510474,1744096252006,-500.0,0.00024137,2]
[357510475,1744096252015,-505.58,0.00024137,2]
[357510476,1744096252026,-542.36,0.00024137,2]
[357510477,1744096252035,-871.23,0.00024137,2]
[357510478,1744096252044,-574.78,0.00024137,2]
[357510479,1744096252054,-5430.84,0.00024137,2]
[357510480,1744096252064,-1158.68,0.00024137,2]
[357510481,1744096252074,-566.0,0.00024137,2]
[357510482,1744096252083,-600.12,0.00024137,2]
[357510483,1744096252092,-500.0,0.00024137,2]
[357510484,1744096252102,-1018.84,0.00024138,2]
[357510485,1744096252112,-651.19,0.00024138,2]
[357510486,1744096252121,-864.85,0.00024138,2]
[357510487,1744096252131,-2875.12,0.00024138,2]
[357510488,1744096252140,-1322.83,0.00024138,2]
[357510489,1744096252151,-239.68432655,0.00024138,2]
[357510490,1744096252161,-2696.02,0.00024138,2]
[357510491,1744096252171,-652.71,0.00024138,2]
[357510492,1744096252181,-502.39456641,0.0002416,2]
[357510493,1744096252191,-552.11879789,0.0002416,2]
[357510494,1744096252201,-593.05159071,0.00024226,2]
[357510495,1744096252211,-502.07304544,0.00024226,2]
[357510496,1744096252221,-501.58907338,0.00024226,2]
[357510497,1744096252231,-256.9179675,0.00024226,2]
[357510498,1744096252241,-501.06796866,0.00024226,2]
[357510499,1744096252251,-1126.37,0.00024237,2]
[357510500,1744096252260,-517.43,0.00024237,2]
[357510501,1744096252270,-500.0,0.00024238,2]
[357510502,1744096252279,-639.32,0.00024238,2]
[357510503,1744096252289,-519.12,0.00024238,2]
[357510504,1744096252298,-500.0,0.00024238,2]
[357510505,1744096252307,-500.0,0.00024238,2]
[357510506,1744096252317,-574.23,0.00024238,2]
[357510507,1744096252326,-631.26,0.00024238,2]
[357510508,1744096252335,-524.67,0.00024238,2]
[357510509,1744096252344,-976.47,0.00024238,2]
[357510510,1744096252355,-501.41449943,0.00024248,2]
[357510511,1744096252364,-501.43095951,0.00024248,2]
[357510512,1744096252374,-151.0,0.000244,10]
[357510513,1744096252384,-468.11187261,0.00024401,2]
[357510514,1744096252393,-500.0,0.0002441,2]
[357510515,1744096252403,-1733.29,0.0002441,2]
[357510516,1744096252412,-1572.23,0.0002441,2]
[357510517,1744096252422,-760.4,0.0002441,2]
[357510518,1744096252431,-691.08,0.0002441,2]
[357510519,1744096252440,-911.97,0.0002441,2]
[357510520,1744096252450,-187.24072084,0.0002441,2]
[357510521,1744096252459,-518.54,0.0002441,2]
[357510522,1744096252469,-948.06,0.0002441,2]
[357510523,1744096252478,-500.0,0.00024411,2]
[357510524,1744096252487,-500.0,0.00024411,2]
[357510525,1744096252497,-505.58,0.00024411,2]
[357510526,1744096252506,-542.36,0.00024411,2]
[357510527,1744096252518,-871.23,0.00024411,2]
[357510528,1744096252529,-574.78,0.00024411,2]
[357510529,1744096252539,-5430.84,0.00024411,2]
[357510530,1744096252548,-1158.68,0.00024411,2]
[357510531,1744096252559,-566.0,0.00024411,2]
[357510532,1744096252568,-600.12,0.00024411,2]
[357510533,1744096252577,-500.0,0.00024411,2]
[357510534,1744096252588,-1018.84,0.00024412,2]
[357510535,1744096252598,-651.19,0.00024412,2]
[357510536,1744096252608,-864.85,0.00024412,2]
[357510537,1744096252618,-2875.12,0.00024412,2]
[357510538,1744096252627,-1322.83,0.00024412,2]
[357510539,1744096252637,-2696.02,0.00024412,2]
[357510540,1744096252646,-652.71,0.00024412,2]
[357510541,1744096252656,-1126.37,0.00024511,2]
[357510542,1744096252665,-517.43,0.00024511,2]
[357510543,1744096252674,-500.0,0.00024512,2]
[357510544,1744096252684,-639.32,0.00024512,2]
[357510545,1744096252693,-519.12,0.00024512,2]
[357510546,1744096252702,-500.0,0.00024512,2]
[357510547,1744096252711,-395.4463813,0.00024512,2]
[357510548,1744096252721,-574.23,0.00024512,2]
[357510549,1744096252730,-631.26,0.00024512,2]
[357510550,1744096252739,-524.67,0.00024512,2]
[357510551,1744096252748,-976.47,0.00024512,2]
[357510552,1744096252757,-367.0343629,0.00024651,2]
[357510553,1744096252766,-200.0,0.00024657,2]
[357510554,1744096252775,-500.0,0.00024657,10]
[357510555,1744096252784,-500.0,0.00024657,10]
[357510556,1744096252794,-269.76998995,0.00024657,10]
[357510557,1744096252803,-500.0,0.00024657,2]
[357510558,1744096252811,-500.0,0.00024657,2]
[357510559,1744096252821,-500.0,0.00024657,2]
[357510560,1744096252830,-500.0,0.00024657,2]
[357510561,1744096252839,-503.29519876,0.00024657,2]
[357510562,1744096252848,-159.76477025,0.00024657,2]
[357510563,1744096252857,-151.0,0.00024658,7]
[357510564,1744096252867,-151.0,0.00024658,7]
[357510565,1744096252876,-198.716186,0.00024658,7]
[357510566,1744096252977,-198.716186,0.00024658,7]
[357510567,1744096253000,-500.0,0.00024658,2]
[357510568,1744096253011,-500.0,0.00024658,2]
[357510569,1744096253021,-500.0,0.00024658,2]
[357510570,1744096253031,-500.0,0.00024658,2]
[357510571,1744096253041,-500.0,0.00024658,2]
[357510572,1744096253050,-500.0,0.00024658,2]
[357510573,1744096253060,-500.0,0.00024658,2]
[357510574,1744096253070,-500.0,0.00024658,2]
[357510575,1744096253079,-500.0,0.00024658,2]
[357510576,1744096253089,-615.06288261,0.00024658,2]
[357510577,1744096253098,-500.0,0.00024658,2]
[357510578,1744096253108,-500.0,0.00024658,2]
[357510579,1744096253118,-500.0,0.00024658,2]
[357510580,1744096253128,-500.0,0.00024658,2]
[357510581,1744096253138,-500.0,0.00024658,2]
[357510582,1744096253148,-500.0,0.00024658,2]
[357510583,1744096253157,-500.0,0.00024658,2]
[357510584,1744096253167,-500.0,0.00024658,2]
[357510585,1744096253176,-224.91477807,0.00024684,2]
[357510586,1744096253186,-1733.29,0.00024684,2]
[357510587,1744096253196,-1572.23,0.00024684,2]
[357510588,1744096253206,-760.4,0.00024684,2]
[357510589,1744096253215,-691.08,0.00024684,2]
[357510590,1744096253226,-911.97,0.00024684,2]
[357510591,1744096253234,-518.54,0.00024684,2]
[357510592,1744096253244,-948.06,0.00024684,2]
[357510593,1744096253254,-500.0,0.00024685,2]
[357510594,1744096253264,-500.0,0.00024685,2]
[357510595,1744096253273,-505.58,0.00024685,2]
[357510596,1744096253283,-542.36,0.00024685,2]
[357510597,1744096253292,-871.23,0.00024685,2]
[357510598,1744096253302,-574.78,0.00024685,2]
[357510599,1744096253313,-5430.84,0.00024685,2]
[357510600,1744096253322,-1158.68,0.00024685,2]
[357510601,1744096253332,-566.0,0.00024685,2]
[357510602,1744096253342,-600.12,0.00024685,2]
[357510603,1744096253351,-500.0,0.00024685,2]
[357510604,1744096253362,-1018.84,0.00024686,2]
[357510605,1744096253372,-651.19,0.00024686,2]
[357510606,1744096253382,-864.85,0.00024686,2]
[357510607,1744096253392,-2875.12,0.00024686,2]
[357510608,1744096253404,-1322.83,0.00024686,2]
[357510609,1744096253414,-2696.02,0.00024686,2]
[357510610,1744096253424,-652.71,0.00024686,2]
[357510611,1744096253434,-1126.37,0.00024785,2]
[357510612,1744096253443,-517.43,0.00024785,2]
[357510613,1744096253453,-500.0,0.00024786,2]
[357510614,1744096253463,-639.32,0.00024786,2]
[357510615,1744096253472,-519.12,0.00024786,2]
[357510616,1744096253482,-562.8,0.00024786,2]
[357510617,1744096253491,-574.23,0.00024786,2]
[357510618,1744096253501,-631.26,0.00024786,2]
[357510619,1744096253510,-524.67,0.00024786,2]
[357510620,1744096253524,-976.47,0.00024786,2]
[357510621,1744096253533,-500.0,0.00024873,2]
[357510622,1744096253543,-151.0,0.000249,7]
[357510623,1744096253552,-235.22656,0.000249,7]
[357510624,1744096253562,-184.586752,0.000249,7]
[357510625,1744096253572,-184.586752,0.000249,7]
[357510626,1744096253582,-160.968227,0.000249,7]
[357510627,1744096253593,-151.183217,0.000249,7]
[357510628,1744096253603,-308.597697,0.000249,7]
[357510629,1744096253613,-308.597697,0.000249,7]
[357510630,1744096253622,-151.0,0.000249,7]
[357510631,1744096253632,-151.0,0.000249,7]
[357510632,1744096253641,-151.0,0.000249,7]
[357510633,1744096253652,-198.716186,0.000249,7]
[357510634,1744096253661,-198.716186,0.000249,7]
[357510635,1744096253671,-151.0,0.000249,7]
[357510636,1744096253680,-151.0,0.000249,7]
[357510637,1744096253690,-155.969362,0.000249,7]
[357510638,1744096253699,-3743.844614,0.000249,2]
[357510639,1744096253709,-3743.844614,0.000249,2]
[357510640,1744096253719,-151.0,0.000249,7]
[357510641,1744096253729,-151.0,0.000249,7]
[357510642,1744096253739,-151.0,0.000249,7]
[357510643,1744096253748,-509550.994485,0.000249,2]
[357510644,1744096253757,-151.0,0.000249,7]
[357510645,1744096253767,-1733.29,0.00024958,2]
[357510646,1744096253776,-1572.23,0.00024958,2]
[357510647,1744096253786,-760.4,0.00024958,2]
[357510648,1744096253796,-691.08,0.00024958,2]
[357510649,1744096253806,-911.97,0.00024958,2]
[357510650,1744096253815,-518.54,0.00024958,2]
[357510651,1744096253825,-948.06,0.00024958,2]
[357510652,1744096253835,-500.0,0.00024959,2]
[357510653,1744096253844,-500.0,0.00024959,2]
[357510654,1744096253854,-505.58,0.00024959,2]
[357510655,1744096253863,-542.36,0.00024959,2]
[357510656,1744096253873,-871.23,0.00024959,2]
[357510657,1744096253882,-574.78,0.00024959,2]
[357510658,1744096253893,-5430.84,0.00024959,2]
[357510659,1744096253904,-1158.68,0.00024959,2]
[357510660,1744096253914,-566.0,0.00024959,2]
[357510661,1744096253923,-600.12,0.00024959,2]
[357510662,1744096253933,-500.0,0.00024959,2]
[357510663,1744096253943,-1018.84,0.0002496,2]
[357510664,1744096253952,-651.19,0.0002496,2]
[357510665,1744096253962,-864.85,0.0002496,2]
[357510666,1744096253971,-2875.12,0.0002496,2]
[357510667,1744096253981,-1322.83,0.0002496,2]
[357510668,1744096253991,-2696.02,0.0002496,2]
[357510669,1744096254001,-652.71,0.0002496,2]
[357510670,1744096254010,-155.12168437,0.00025,2]
[357510671,1744096254020,-1000.0,0.00025052,2]
[357510672,1744096254029,-1000.0,0.00025052,2]
[357510673,1744096254038,-1126.37,0.00025059,2]
[357510674,1744096254047,-517.43,0.00025059,2]
[357510675,1744096254057,-500.0,0.0002506,2]
[357510676,1744096254066,-639.32,0.0002506,2]
[357510677,1744096254075,-519.12,0.0002506,2]
[357510678,1744096254085,-574.23,0.0002506,2]
[357510679,1744096254095,-631.26,0.0002506,2]
[357510680,1744096254104,-524.67,0.0002506,2]
[357510681,1744096254114,-976.47,0.0002506,2]
[357510682,1744096254123,-1733.29,0.00025232,2]
[357510683,1744096254133,-1572.23,0.00025232,2]
[357510684,1744096254143,-760.4,0.00025232,2]
[357510685,1744096254154,-691.08,0.00025232,2]
[357510686,1744096254164,-911.97,0.00025232,2]
[357510687,1744096254173,-518.54,0.00025232,2]
[357510688,1744096254183,-948.06,0.00025232,2]
[357510689,1744096254192,-182.28299165,0.00025233,2]
[357510690,1744096254201,-500.0,0.00025233,2]
[357510691,1744096254210,-505.58,0.00025233,2]
[357510692,1744096254220,-542.36,0.00025233,2]
[357510693,1744096254229,-871.23,0.00025233,2]
[357510694,1744096254238,-574.78,0.00025233,2]
[357510695,1744096254248,-5430.84,0.00025233,2]
[357510696,1744096254258,-1158.68,0.00025233,2]
[357510697,1744096254268,-566.0,0.00025233,2]
[357510698,1744096254277,-600.12,0.00025233,2]
[357510699,1744096254286,-500.0,0.00025233,2]
[357510700,1744096254295,-1018.84,0.00025234,2]
[357510701,1744096254304,-651.19,0.00025234,2]
[357510702,1744096254313,-864.85,0.00025234,2]
[357510703,1744096254323,-2875.12,0.00025234,2]
[357510704,1744096254332,-1322.83,0.00025234,2]
[357510705,1744096254341,-2696.02,0.00025234,2]
[357510706,1744096254351,-652.71,0.00025234,2]
[357510707,1744096254360,-1000.0,0.00025252,2]
[357510708,1744096254369,-1000.0,0.00025252,2]
[357510709,1744096254379,-1000.0,0.00025252,2]
[357510710,1744096254388,-1000.0,0.00025252,2]
[357510711,1744096254398,-1000.0,0.00025252,2]
[357510712,1744096254407,-1000.0,0.00025252,2]
[357510713,1744096254416,-1000.0,0.00025252,2]
[357510714,1744096254426,-1126.37,0.00025333,2]
[357510715,1744096254435,-517.43,0.00025333,2]
[357510716,1744096254446,-500.0,0.00025334,2]
[357510717,1744096254455,-639.32,0.00025334,2]
[357510718,1744096254465,-519.12,0.00025334,2]
[357510719,1744096254474,-574.23,0.00025334,2]
[357510720,1744096254483,-631.26,0.00025334,2]
[357510721,1744096254492,-524.67,0.00025334,2]
[357510722,1744096254501,-976.47,0.00025334,2]
[357510723,1744096254511,-1000.0,0.00025352,2]
[357510724,1744096254524,-1000.0,0.00025352,2]
[357510725,1744096254533,-1000.0,0.00025352,2]
[357510726,1744096254543,-1000.0,0.00025352,2]
[357510727,1744096254552,-1000.0,0.00025352,2]
[357510728,1744096254563,-1733.29,0.00025506,2]
[357510729,1744096254572,-1572.23,0.00025506,2]
[357510730,1744096254581,-760.4,0.00025506,2]
[357510731,1744096254592,-691.08,0.00025506,2]
[357510732,1744096254602,-911.97,0.00025506,2]
[357510733,1744096254612,-518.54,0.00025506,2]
[357510734,1744096254622,-948.06,0.00025506,2]
[357510735,1744096254631,-500.0,0.00025507,2]
[357510736,1744096254641,-505.58,0.00025507,2]
[357510737,1744096254654,-542.36,0.00025507,2]
[357510738,1744096254663,-871.23,0.00025507,2]
[357510739,1744096254673,-574.78,0.00025507,2]
[357510740,1744096254682,-5430.84,0.00025507,2]
[357510741,1744096254692,-1158.68,0.00025507,2]
[357510742,1744096254701,-566.0,0.00025507,2]
[357510743,1744096254711,-600.12,0.00025507,2]
[357510744,1744096254721,-500.0,0.00025507,2]
[357510745,1744096254732,-1018.84,0.00025508,2]
[357510746,1744096254741,-651.19,0.00025508,2]
[357510747,1744096254751,-864.85,0.00025508,2]
[357510748,1744096254760,-2875.12,0.00025508,2]
[357510749,1744096254770,-1322.83,0.00025508,2]
[357510750,1744096254781,-2696.02,0.00025508,2]
[357510751,1744096254790,-652.71,0.00025508,2]
[357510752,1744096254800,-1000.0,0.00025539,2]
[357510753,1744096254809,-1126.37,0.00025607,2]
[357510754,1744096254819,-517.43,0.00025607,2]
[357510755,1744096254829,-443.2,0.00025608,2]
[357510756,1744096254839,-639.32,0.00025608,2]
[357510757,1744096254848,-519.12,0.00025608,2]
[357510758,1744096254857,-574.23,0.00025608,2]
[357510759,1744096254867,-631.26,0.00025608,2]
[357510760,1744096254877,-524.67,0.00025608,2]
[357510761,1744096254886,-976.47,0.00025608,2]
[357510762,1744096254896,-465.15559363,0.00025621,2]
[357510763,1744096254906,-501.4554662,0.00025652,2]
[357510764,1744096254916,-1733.3114664,0.0002578,2]
[357510765,1744096254926,-1572.40846129,0.0002578,2]
[357510766,1744096254936,-760.6109671,0.0002578,2]
[357510767,1744096254946,-691.11965299,0.0002578,2]
[357510768,1744096254955,-912.02,0.0002578,2]
[357510769,1744096254965,-518.55483493,0.0002578,2]
[357510770,1744096254974,-948.12433331,0.0002578,2]
[357510771,1744096254984,-274.97396965,0.00025781,2]
[357510772,1744096254994,-505.60941568,0.00025781,2]
[357510773,1744096255003,-542.54138516,0.00025781,2]
[357510774,1744096255013,-871.39897893,0.00025781,2]
[357510775,1744096255022,-574.8010492,0.00025781,2]
[357510776,1744096255033,-5430.9149071,0.00025781,2]
[357510777,1744096255042,-1158.73000001,0.00025781,2]
[357510778,1744096255051,-566.16750766,0.00025781,2]
[357510779,1744096255061,-600.28101796,0.00025781,2]
[357510780,1744096255070,-491.7222622,0.00025781,2]
[357510781,1744096255079,-1018.87681117,0.00025782,2]
[357510782,1744096255089,-651.2999122,0.00025782,2]
[357510783,1744096255098,-865.04213829,0.00025782,2]
[357510784,1744096255108,-2875.12399746,0.00025782,2]
[357510785,1744096255118,-1322.89159413,0.00025782,2]
[357510786,1744096255128,-2696.17548836,0.00025782,2]
[357510787,1744096255137,-652.94906699,0.00025782,2]
[357510788,1744096255148,-1126.44803004,0.00025881,2]
[357510789,1744096255158,-517.4756666,0.00025881,2]
[357510790,1744096255167,-639.42806647,0.00025882,2]
[357510791,1744096255177,-519.18577496,0.00025882,2]
[357510792,1744096255186,-574.35790896,0.00025882,2]
[357510793,1744096255195,-631.41,0.00025882,2]
[357510794,1744096255205,-524.82356968,0.00025882,2]
[357510795,1744096255215,-976.55,0.00025882,2]
[357510796,1744096255224,-200.0,0.00026027,2]
[357510797,1744096255233,-565.69870945,0.00026456,2]
[357510798,1744096255243,-502.23849866,0.00026456,2]
[357510799,1744096255353,-1000.0,0.00026456,2]
[357510800,1744096255364,-502.41788925,0.00026456,2]
[357510801,1744096255374,-501.84864208,0.00026456,2]
[357510802,1744096255383,-501.88792632,0.00026456,2]
[357510803,1744096255393,-616.58732796,0.00026456,2]
[357510804,1744096255403,-500.96713232,0.00026456,2]
[357510805,1744096255413,-431.61500593,0.00026456,2]
[357510806,1744096255422,-604.60346185,0.00026456,2]
[357510807,1744096255432,-1000.0,0.00026456,2]
[357510808,1744096255441,-1000.0,0.00026456,2]
[357510809,1744096255451,-301.48227348,0.00026456,2]
[357510810,1744096255460,-283.30335579,0.00026456,2]
[357510811,1744096255470,-890.1040898,0.00026456,2]
[357510812,1744096255479,-1000.0,0.00026456,2]
[357510813,1744096255489,-502.82784331,0.00026456,2]
[357510814,1744096255499,-1011.55638712,0.00026979,2]
[357510815,1744096255508,-837.41003169,0.00027,3]
[357510816,1744096255520,-357.30028375,0.00027208,2]
[357510817,1744096255530,-502.41979185,0.00027208,2]
[357510818,1744096255539,-184.88664157,0.00027208,2]
[357510819,1744096255549,-174.64684328,0.00027208,2]
[357510820,1744096255559,-502.32809247,0.00027208,2]
[357510821,1744096255568,-1000.0,0.00027208,2]
[357510822,1744096255578,-501.99160187,0.00027208,2]
[357510823,1744096255587,-200.0,0.00027397,2]
[357510824,1744096255598,-501.49010657,0.00027397,2]
[357510825,1744096255607,-250.49597576,0.00027397,5]
[357510826,1744096255617,-150.16910683,0.00027397,5]
[357510827,1744096255626,-151.3115747,0.00027397,2]
[357510828,1744096255636,-500.0,0.00027397,5]
[357510829,1744096255645,-1000.0,0.00027548,5]
[357510830,1744096255655,-180.235759,0.00027755,2]
[357510831,1744096255665,-2000.0,0.00027788,4]
[357510832,1744096255674,-801.802,0.00028089,2]
[357510833,1744096255684,-547.401,0.00028089,2]
[357510834,1744096255694,-2253.0,0.00028089,2]
[357510835,1744096255703,-401.0,0.0002809,2]
[357510836,1744096255713,-150.0,0.000287,2]
[357510837,1744096255724,-200.0,0.00028767,2]
[357510838,1744096255733,-153.798,0.00029591,2]
[357510839,1744096255743,-2000.0,0.00029823,4]
[357510840,1744096255752,-200.0,0.00030136,2]
[357510841,1744096255762,-179.89206476,0.00030321,5]
[357510842,1744096255772,-786.88263675,0.00030352,5]
[357510843,1744096255781,-6579.26025965,0.00030694,3]
[357510844,1744096255791,-543.0,0.00031089,2]
[357510845,1744096255800,-907.424,0.00031089,2]
[357510846,1744096255809,-200.0,0.00031506,2]
[357510847,1744096255819,-2000.0,0.00031859,4]
[357510848,1744096255829,-150.0,0.00032591,2]
[357510849,1744096255838,-160.0,0.00032774,3]
[357510850,1744096255848,-200.0,0.00032876,2]
[357510851,1744096255857,-150.0,0.00032877,5]
[357510852,1744096255867,-500.0,0.00032877,5]
[357510853,1744096255877,-1000.0,0.00032877,5]
[357510854,1744096255886,-2000.0,0.00033894,4]
[357510855,1744096255897,-543.0,0.00034089,2]
[357510856,1744096255906,-200.0,0.00034246,2]
[357510857,1744096255916,-84472.76068616,0.000345,2]
[357510858,1744096255926,-160.0,0.00034999,10]
[357510859,1744096255935,-91221.12231111,0.00035,14]
[357510860,1744096255945,-1500.0,0.00035071,5]
[357510861,1744096255955,-160.0,0.00035134,4]
[357510862,1744096255964,-530.2244,0.0003519,30]
[357510863,1744096255974,-510.82431721,0.00035271,5]
[357510864,1744096255984,-1500.0,0.00035271,5]
[357510865,1744096255994,-1500.0,0.00035271,5]
[357510866,1744096256003,-1007.21265702,0.00035271,5]
[357510867,1744096256013,-1500.0,0.00035271,2]
[357510868,1744096256022,-1500.0,0.00035271,5]
[357510869,1744096256032,-2200.0,0.00035295,7]
[357510870,1744096256041,-500.0,0.00035295,7]
[357510871,1744096256051,-1500.0,0.00035371,2]
[357510872,1744096256060,-1005.83580983,0.00035371,5]
[357510873,1744096256070,-1500.0,0.00035371,5]